[Event "FIDE Candidates Tournament 2022"]
[Site "Madrid"]
[Date "2022.06.17"]
[Round "1.2"]
[White "Ding, Liren"]
[Black "Nepomniachtchi, Ian"]
[Result "0-1"]
[ECO "A20"]
[WhiteElo "2806"]
[BlackElo "2773"]
[Annotator "TA"]
[PlyCount "64"]
[EventDate "2022.06.17"]
[EventType "tourn"]
[EventCountry "ESP"]
[SourceTitle "playchess.com"]
[Source "ChessBase"]
[SourceQuality "1"]
[TimeControl "40/7200:20/3600:900+30"]

{[%evp 9,64,8,20,4,18,15,0,4,0,5,0,7,0,2,0,12,55,39,45,-3,35,22,35,25,39,0,36,12,12,21,7,0,0,-99,0,-100,-105,-96,-95,-159,-88,-105,-95,-430,-422,-410,-406,-29974,-29965,-29988,-29989,-29989,-29990,-29990,-29991,-29991,-29992]} 1. c4 {[%emt 0:00:02]} e5 {[%emt 0:00:07]} 2. g3 {[%emt 1:59:58]} c6 {[%emt 0:00:06]} 3. Nf3 {[%emt 0:00:00]} e4 {[%emt 0:00:17]} 4. Nd4 {[%emt 0:00:00][%cal Bf3d4,Bd4c2,Bc2e3][%mdl 32]} d5 {[%emt 0:00:24]} 5. cxd5 {[%emt 0:00:00]} Qxd5 {[%emt 0:00:39]} 6. Nc2 {[%emt 0:00:00] A20: English Opening: 1...e5.} Nf6 {[%emt 0:00:41]} 7. Nc3 {[%emt 0:00:00]} Qe5 {[%emt 0:00:45] 7...Qe5 scores better than 7...Qh5.} 8. Bg2 {[%emt 0:00:00] The position is equal.} Na6 {[%emt 0:01:10]} 9. O-O {[%emt 0:00:00]} (9. d3 {with more complications.} exd3 10. Qxd3 Nb4 11. Nxb4 Bxb4 12. Bf4) 9... Be7 {[%emt 0:02:35]} 10. Ne3 {[%emt 0:00:00]} O-O {[%emt 0:01:16] [#]} 11. a3 $146 {[%emt 0:00:00]} ({Predecessor:} 11. Qc2 Nc5 12. b3 Ne6 13. Bb2 Nd4 14. Qd1 Rd8 15. Re1 Be6 16. Nc4 Qh5 17. Nxe4 Nxe4 18. Bxe4 {1-0 (50) Tyurin,A (2261)-Zemlyanskii,I (2169) Paracin 2022}) 11... Re8 {[%emt 0:08:26]} 12. b4 {[%emt 0:00:00]} Ng4 {[%emt 0:08:55]} 13. Bb2 {[%emt 0:00:00]} Qh5 {[%emt 0:03:43][%csl Gg4][%cal Rh5h2]} 14. h4 {[%emt 0:00:00]} (14. Nxg4 $14 {should be considered.} Bxg4 15. Bxe4) 14... Bf6 {[%emt 0:08:23]} 15. Qc2 {[%emt 0:00:00]} Nxe3 {[%emt 0:01:45]} 16. dxe3 {[%emt 0:00:00]} (16. fxe3 Bf5 17. Rab1 Qg6 $11) 16... Bf5 {[%emt 0:01:28][%cal Of6h4]} 17. Na4 {[%emt 0:00:00]} (17. b5 $5 {[%cal Rb5a6]} Nc5 18. bxc6 $11) 17... Bxb2 {[%emt 0:18:51]} 18. Nxb2 {[%emt 0:00:00]} Nc7 {[%emt 0:01:11]} 19. Nc4 {[%emt 0:00:00]} Re6 {[%emt 0:00:48] Inhibits Nd6.} 20. Rfd1 {[%emt 0:00:00]} Nd5 {[%emt 0:00:29] And now ...g5 would win.} 21. Rd4 {[%emt 0:00:00]} (21. b5 $11) 21... h6 {[%emt 0:06:32]} ({Black should try} 21... g5 $1 $17 {[%cal Rg5h4]} 22. hxg5 (22. Bxe4 Rxe4 23. Rxe4 Qg6 $17) 22... Qxg5) 22. Qd2 {[%emt 0:00:00]} (22. Rad1 $11 {remains equal.}) 22... Rae8 $1 $17 {[%emt 0:02:55]} 23. Kh2 {[%emt 0:00:00]} Bg4 {[%emt 0:03:32]} 24. Na5 {[%emt 0:00:00]} (24. Qc2 $142) 24... Rf6 {[%emt 0:04:01]} (24... Bxe2 25. Nxb7 Rf6 26. Kg1 $11) ({Better is} 24... g5 $1 {[%cal Rg5h4]} 25. Rh1 (25. Nxb7 $2 gxh4 26. Kg1 Rg6 $19) 25... gxh4) 25. Kg1 {[%emt 0:00:00] [#]} g5 $1 {[%emt 0:00:35][%cal Bg7g5,Bg5h4,Bh4h3][%mdl 32] Black is more active.} (25... Bxe2 $6 26. Bxe4 Bf3 27. Bc2 $11) (25... Qf5 26. Rf1 $14) 26. Nxb7 $2 {[%emt 0:00:00][%mdl 8192] This move loses the game for White.} (26. b5 $17 {was the crucial defense.} gxh4 27. bxc6 hxg3 28. fxg3) 26... gxh4 $19 {[%emt 0:00:42]} 27. Nc5 {[%emt 0:00:00]} h3 {[%emt 0:04:46]} ({Avoid the trap} 27... hxg3 $2 28. fxg3 Bf5 29. Rf1 $19) 28. Rxe4 {[%emt 0:00:00] [#]} (28. Nxe4 $19 Rfe6 29. f3 hxg2 30. Nf2 Nxe3 31. fxg4) 28... hxg2 $1 {[%emt 0:02:54][%csl Gg2][%cal Rh5h1] Black mates.} 29. Rxe8+ {[%emt 0:00:00]} (29. Rxg4+ Qxg4) 29... Kg7 {[%emt 0:00:04][%csl Gg2][%cal Rh5h1]} 30. f4 {[%emt 0:00:00]} Qh1+ {[%emt 0:02:30][%mdl 64] Skewer} 31. Kf2 {[%emt 0:00:00]} Qxa1 {[%emt 0:00:05][%csl Ga1][%cal Rg2g1]} 32. Kxg2 {[%emt 0:00:00] [#]} Bh3+ $1 {[%emt 0:00:11][%mdl 512] Weighted Error Value: White=0.44/Black=0.11 (very precise)} 0-1

[Event "FIDE Candidates Tournament 2022"]
[Site "Madrid"]
[Date "2022.06.19"]
[Round "3.1"]
[White "Ding, Liren"]
[Black "Rapport, Richard"]
[Result "1/2-1/2"]
[ECO "D87"]
[WhiteElo "2806"]
[BlackElo "2776"]
[Annotator "TA"]
[PlyCount "80"]
[EventDate "2022.06.17"]
[EventType "tourn"]
[EventCountry "ESP"]
[SourceTitle "playchess.com"]
[Source "ChessBase"]
[SourceQuality "1"]
[TimeControl "40/7200:20/3600:900+30"]

{[%evp 19,80,16,38,0,0,0,0,0,5,10,9,6,49,0,0,0,55,34,57,65,63,30,72,45,125,126,243,75,78,78,159,164,159,156,162,80,80,89,80,65,65,43,55,0,77,0,43,28,28,28,44,0,0,0,0,0,0,0,0,0,0,0,0]} 1. d4 {[%emt 0:00:05]} Nf6 {[%emt 0:01:00]} 2. c4 {[%emt 0:00:18]} g6 {[%emt 0:00:14]} 3. Nc3 {[%emt 0:00:28]} d5 {[%emt 0:00:24]} 4. cxd5 {[%emt 0:00:44]} Nxd5 {[%emt 0:01:02]} 5. e4 {[%emt 0:00:06]} Nxc3 {[%emt 0:00:07]} 6. bxc3 {[%emt 0:00:05]} Bg7 {[%emt 0:00:05]} 7. Bc4 {[%emt 0:00:24]} c5 {[%emt 0:00:16]} 8. Ne2 {[%emt 0:00:07]} Nc6 {[%emt 0:00:04]} 9. Be3 {[%emt 0:00:12]} O-O {[%emt 0:00:07]} 10. O-O {[%emt 0:00:06]} b6 {[%emt 0:00:05]} 11. Rc1 {[%emt 0:02:25] D87: Exchange Grünfeld: Classical Line: Variations without ...cxd4.} Bb7 {[%emt 0:00:38]} 12. Bb5 $1 {[%emt 0:02:50][%mdl 4] is currently scoring better than 12.Qd2.} Rc8 {[%emt 0:01:36]} 13. Qd2 {[%emt 0:08:45]} cxd4 {[%emt 0:02:56]} 14. cxd4 {[%emt 0:00:06]} Qd6 {[%emt 0:00:40]} 15. Rfd1 {[%emt 0:14:38]} Qb4 {[%emt 0:15:59]} 16. Qd3 {[%emt 0:02:33]} (16. Qxb4 $14 Nxb4 17. Bg5 Nxa2 18. Ra1) 16... e6 $11 {[%emt 0:15:22]} 17. h4 {[%emt 1:26:08][%cal Bh2h4,Bh4h5][%mdl 32]} Rfd8 {[%emt 0:13:09] [#]} ({Black should try} 17... Bf6 $11) 18. Bg5 $146 {[%emt 0:00:00]} ({Predecessor:} 18. a3 Qe7 19. Bg5 Bf6 20. Qe3 h6 21. Bxh6 Nxd4 22. Rxc8 Nxe2+ 23. Bxe2 Bxc8 24. h5 Rxd1+ 25. Bxd1 Qd8 26. Bc2 Qc7 27. Bd1 Qd8 28. Bc2 Qc7 29. Bd1 Qd8 {½-½ (29) Giri,A (2764)-Nepomniachtchi,I (2784) chess24.com INT 2020}) 18... Nxd4 {[%emt 0:01:14] Hoping for ...Rxc1.} 19. Bxd8 {[%emt 0:00:00]} Rxd8 {[%emt 0:00:24] [#]} 20. h5 $1 {[%emt 0:00:00]} Be5 {[%emt 0:10:03]} (20... Bf6 21. Nxd4) 21. a4 {[%emt 0:00:00]} Kg7 {[%emt 0:09:33] [#]} (21... Rd6 $14 22. Nxd4 Rxd4) 22. Kf1 $1 $16 {[%emt 0:00:00]} Nxe2 {[%emt 0:18:31]} 23. Qxe2 $2 {[%emt 0:00:00] Chess con chili.} (23. Qxd8 $18 {is the precise move to win. Threatens to win with Qg5.} Qxe4 24. Bxe2 (24. h6+ Kxh6 25. Bxe2 Qxg2+ 26. Ke1 Qh1+ 27. Kd2 Bf4+ 28. Kc3 Qc6+ 29. Kb2 Bxc1+ 30. Rxc1 Qe4 $16) 24... Qxg2+ 25. Ke1 Qh1+ 26. Kd2 Bf4+ 27. Kc3 Qc6+ 28. Bc4 Qf3+ 29. Qd3) 23... Rxd1+ {[%emt 0:03:14]} 24. Rxd1 {[%emt 0:00:00]} a6 {[%emt 0:00:22]} (24... Qxe4 25. Qxe4 Bxe4 26. Re1 $18) (24... Bxe4 $2 25. f3 $18) ({Black should play} 24... Bd4) 25. Bxa6 {[%emt 0:00:00]} Bxa6 {[%emt 0:00:09]} 26. Qxa6 {[%emt 0:00:00]} Qxe4 {[%emt 0:00:32][%mdl 4096] Endgame KQR-KQB} 27. Re1 {[%emt 0:00:00]} ({Don't do} 27. Qxb6 $6 Qxa4 28. Re1 Bd4 $14) (27. hxg6 $18 {is more deadly.} hxg6 28. Qe2 (28. Qxb6 Qxa4 29. Qd8 Bc3 $16)) 27... Qd4 {[%emt 0:01:50]} 28. Qe2 {[%emt 0:00:00]} Bf6 {[%emt 0:02:04]} 29. hxg6 {[%emt 0:00:00]} hxg6 {[%emt 0:00:24]} 30. Qe4 {[%emt 0:00:00] Black must now prevent Qxd4.} Qd2 {[%emt 0:02:03]} 31. Re2 {[%emt 0:00:00]} Qd1+ {[%emt 0:00:57]} 32. Re1 {[%emt 0:00:00]} Qd2 {[%emt 0:00:05]} 33. g3 {[%emt 0:00:00]} Bd4 {[%emt 0:00:46][%csl Gd4][%cal Rd2f2]} 34. Qe2 {[%emt 0:00:00]} Qc3 {[%emt 0:00:58]} 35. Rd1 {[%emt 0:00:00]} Qc6 {[%emt 0:00:37][%cal Rc6h1] The position is equal.} 36. Qg4 {[%emt 0:00:00]} e5 {[%emt 0:00:11]} 37. Rxd4 {[%emt 0:00:00]} exd4 {[%emt 0:00:05]} 38. Qxd4+ {[%emt 0:00:00]} Kg8 {[%emt 0:00:09]} 39. Qd8+ {[%emt 0:00:00]} Kg7 {[%emt 0:00:04]} 40. Qd4+ {[%emt 0:00:00]} Kg8 {[%emt 0:00:00] White really could win this.  Weighted Error Value: White=0.19 (very precise) /Black=0.18 (very precise)} 1/2-1/2

[Event "FIDE Candidates Tournament 2022"]
[Site "Madrid"]
[Date "2022.06.21"]
[Round "4.4"]
[White "Ding, Liren"]
[Black "Caruana, Fabiano"]
[Result "1/2-1/2"]
[ECO "D38"]
[WhiteElo "2806"]
[BlackElo "2786"]
[Annotator "TA"]
[PlyCount "127"]
[EventDate "2022.06.17"]
[EventType "tourn"]
[EventCountry "ESP"]
[SourceTitle "playchess.com"]
[Source "ChessBase"]
[SourceQuality "1"]
[TimeControl "40/7200:20/3600:900+30"]

{[%evp 11,127,7,16,9,25,20,20,18,13,14,18,22,14,19,13,11,8,8,8,8,5,10,6,4,81,70,71,75,84,80,79,73,81,81,81,91,81,81,81,64,68,67,67,67,67,67,67,61,68,68,68,68,68,56,68,68,68,68,68,68,68,68,68,68,68,68,68,68,68,68,68,68,68,68,68,34,34,34,34,0,25,25,25,25,25,25,25,25,25,25,25,25,25,25,25,25,25,25,25,25,25,25,25,25,25,0,21,21,21,21,21,0,0,0,21,0,0,0]} 1. d4 {[%emt 0:00:03]} Nf6 {[%emt 0:00:05]} 2. c4 {[%emt 0:00:06]} e6 {[%emt 0:00:03]} 3. Nf3 {[%emt 0:00:09]} d5 {[%emt 0:00:06]} 4. Nc3 {[%emt 0:00:05]} Bb4 {[%emt 0:00:07]} 5. Qa4+ {[%emt 0:00:45]} Nc6 {[%emt 0:00:11][%cal Bb8c6,Bc6a5,Ba5c4,Bc4d2][%mdl 32]} 6. e3 {[%emt 0:00:03]} O-O {[%emt 0:00:11]} 7. Qc2 {[%emt 0:00:06] D38: Queen's Gambit Declined: Ragozin Defence (4 Nf3 Bb4).} Na5 {[%emt 0:00:41]} 8. c5 {[%emt 0:02:55]} b6 {[%emt 0:00:36]} 9. Bd2 {[%emt 0:11:37] [#]} Nc4 $146 {[%emt 0:00:32]} ({Predecessor:} 9... bxc5 10. a3 Bxc3 11. Bxc3 Nc6 12. dxc5 Ne4 13. Be2 Nxc3 14. Qxc3 a5 15. O-O Ba6 16. Bxa6 Rxa6 {1-0 (61) Santos Ruiz,M (2560)-Bluebaum,M (2643) chess24.com INT 2019}) 10. a3 {[%emt 0:04:21]} Nxd2 {[%emt 0:01:24]} 11. Nxd2 {[%emt 0:00:11]} Bxc3 {[%emt 0:00:04]} 12. Qxc3 {[%emt 0:00:04]} a5 {[%emt 0:00:09]} 13. Rc1 {[%emt 0:05:15]} Ba6 {[%emt 0:12:49]} 14. cxb6 {[%emt 0:01:35]} cxb6 {[%emt 0:00:08]} 15. Bxa6 {[%emt 0:00:02]} Rxa6 {[%emt 0:00:04]} 16. O-O {[%emt 0:01:06]} Ra8 {[%emt 0:21:46]} 17. Qb3 {[%emt 0:01:53]} Rc8 {[%emt 0:15:46] Against Rc6} (17... Qd7 $11 {remains equal.}) 18. Rxc8 $16 {[%emt 0:03:43]} Qxc8 {[%emt 0:00:04]} 19. Qxb6 {[%emt 0:00:05]} a4 {[%emt 0:02:28]} 20. Qb4 {[%emt 0:09:27]} Qc2 {[%emt 0:10:30]} 21. b3 {[%emt 0:01:09]} axb3 {[%emt 0:12:14]} 22. Nxb3 {[%emt 0:00:06]} Ne4 {[%emt 0:00:45] [#]} 23. a4 $1 {[%emt 0:23:26]} Qc4 {[%emt 0:00:15]} 24. Qxc4 {[%emt 0:01:27]} dxc4 {[%emt 0:00:04]} 25. Nc5 {[%emt 0:00:10]} Nxc5 {[%emt 0:08:08]} 26. dxc5 $14 {[%emt 0:00:08][%mdl 4096] Endgame aiming for Rc1. KR-KR} Ra8 {[%emt 0:09:27]} 27. Rb1 $1 {[%emt 0:33:12] [#] Hoping for c6.} Kf8 {[%emt 0:00:04]} 28. Rb4 $1 {[%emt 0:00:35]} c3 {[%emt 0:00:03] Threatens to win with ...c2.} 29. Rc4 {[%emt 0:00:06] Strongly threatening c6.} Ke7 {[%emt 0:01:29]} 30. Kf1 {[%emt 0:00:27]} c2 $1 {[%emt 0:00:09]} 31. Rxc2 {[%emt 0:00:04]} Rxa4 {[%emt 0:00:04]} 32. Rb2 {[%emt 0:03:52]} Ra7 {[%emt 0:02:37]} 33. Ke2 {[%emt 0:00:05]} Kd7 {[%emt 0:00:04]} 34. Rb8 $1 {[%emt 0:03:54]} Rc7 {[%emt 0:01:10]} 35. Rh8 {[%emt 0:00:09] White is more active.} Ke7 {[%emt 0:01:05]} 36. Rxh7 {[%emt 0:00:06]} g6 {[%emt 0:00:05]} 37. h4 {[%emt 0:00:43]} Rxc5 {[%emt 0:00:23]} 38. Rh8 {[%emt 0:00:05]} f5 {[%emt 0:01:57]} 39. Rh7+ {[%emt 0:00:28]} Kf6 {[%emt 0:00:19]} 40. Kf3 {[%emt 0:00:00]} Rc4 {[%emt 0:00:00]} 41. g3 {[%emt 0:00:12]} Ra4 {[%emt 0:10:37]} 42. Rd7 {[%emt 0:00:23]} g5 {[%emt 0:05:36]} 43. hxg5+ {[%emt 0:01:01]} Kxg5 {[%emt 0:00:05]} 44. Rd4 {[%emt 0:00:05]} Ra3 {[%emt 0:00:19]} 45. g4 {[%emt 0:00:33]} fxg4+ {[%emt 0:00:33]} 46. Rxg4+ {[%emt 0:00:04]} Kf6 {[%emt 0:00:04]} 47. Rf4+ {[%emt 0:00:15]} Ke7 {[%emt 0:00:04]} 48. Kg4 {[%emt 0:00:37]} Ra5 {[%emt 0:00:57]} 49. Rb4 {[%emt 0:00:06]} Kf6 {[%emt 0:00:15]} 50. f4 {[%emt 0:00:07]} Ra1 {[%emt 0:00:49]} 51. e4 {[%emt 0:00:16]} Rg1+ {[%emt 0:01:41]} 52. Kf3 {[%emt 0:00:06]} Rf1+ {[%emt 0:00:04]} 53. Ke3 {[%emt 0:00:08]} Re1+ {[%emt 0:00:06]} 54. Kf2 {[%emt 0:00:05]} Ra1 {[%emt 0:00:08]} 55. Rb6 {[%emt 0:00:04] And now f5 would win.} Kf7 {[%emt 0:00:58]} 56. Kf3 {[%emt 0:00:11]} Ra3+ {[%emt 0:03:32]} 57. Kg4 {[%emt 0:01:35]} Ra1 {[%emt 0:00:05]} 58. f5 {[%emt 0:01:44]} Rg1+ {[%emt 0:00:49] The position is equal.} 59. Kf4 {[%emt 0:00:05]} Rf1+ {[%emt 0:00:14]} 60. Ke5 {[%emt 0:00:00] White threatens Rb7+ and mate.} exf5 {[%emt 0:00:00]} 61. Rb7+ {[%emt 0:00:53]} Kg6 {[%emt 0:00:11]} 62. Rb6+ {[%emt 0:00:06]} Kf7 {[%emt 0:00:07]} 63. Rb7+ {[%emt 0:00:04]} Kg6 {[%emt 0:00:02]} 64. Rb6+ {[%emt 0:00:03] Weighted Error Value: White=0.03 (flawless) /Black=0.05 (flawless)} 1/2-1/2

[Event "FIDE Candidates Tournament 2022"]
[Site "Madrid"]
[Date "2022.06.25"]
[Round "7.3"]
[White "Ding, Liren"]
[Black "Firouzja, Alireza"]
[Result "1/2-1/2"]
[ECO "A22"]
[WhiteElo "2806"]
[BlackElo "2804"]
[Annotator "TA"]
[PlyCount "107"]
[EventDate "2022.06.17"]
[EventType "tourn"]
[EventCountry "ESP"]
[SourceTitle "playchess.com"]
[Source "ChessBase"]
[SourceQuality "1"]
[TimeControl "40/7200:20/3600:900+30"]

{[%evp 9,107,0,14,8,5,11,12,12,14,0,0,0,0,5,16,4,14,-4,1,6,6,3,3,0,0,0,0,0,0,0,0,0,0,0,0,-4,-3,-3,-3,-18,11,6,27,0,20,9,15,0,15,15,15,15,15,14,21,9,15,16,13,0,0,0,0,0,0,0,0,0,0,0,0,0,0,0,0,0,0,0,0,0,0,0,0,0,0,0,0,-8,0,0,0,0,0,0,0,0,0,0,0,0]} 1. c4 {[%emt 0:00:03] Giri,Anish} e5 {[%emt 0:00:05]} 2. g3 {[%emt 0:00:04]} Nf6 {[%emt 0:00:08]} 3. Bg2 {[%emt 0:00:04]} Bc5 {[%emt 0:00:09]} 4. d3 {[%emt 0:00:16]} O-O {[%emt 0:00:41]} 5. Nc3 {[%emt 0:00:46]} c6 {[%emt 0:00:23]} 6. Nf3 {[%emt 0:00:14] A22: English Opening: 1...e5 2 Nc3 Nf6.} d6 {[%emt 0:00:11]} 7. O-O {[%emt 0:00:07]} a5 {[%emt 0:00:31]} 8. d4 {[%emt 0:07:25]} exd4 {[%emt 0:00:19]} 9. Nxd4 {[%emt 0:02:02]} a4 {[%emt 0:00:06]} 10. Rb1 {[%emt 0:08:00] [#]} Qa5 $146 {[%emt 0:14:55]} ({Predecessor:} 10... Re8 11. e3 Qa5 12. Bd2 Bg4 13. f3 Bh5 14. Ne4 Qd8 15. Nxc5 dxc5 16. Ne2 Qd3 {1-0 (52) So,W (2770)-Caruana,F (2820) Bucharest 2021 CBM 203 [Giri,Anish]}) 11. Nc2 {[%emt 0:04:18]} Bf5 {[%emt 0:07:41]} 12. Bd2 {[%emt 0:08:29][%cal Oc3e4]} Nbd7 {[%emt 0:05:44]} 13. Rc1 {[%emt 0:12:54]} Qa7 {[%emt 0:48:30]} 14. b3 {[%emt 0:01:17]} axb3 {[%emt 0:00:27]} 15. axb3 {[%emt 0:00:03]} Rfe8 {[%emt 0:02:02]} 16. Na4 {[%emt 0:04:03]} Be4 {[%emt 0:02:30]} ({But not} 16... Bxf2+ 17. Rxf2 Ng4 18. Be1 $14) 17. Bc3 {[%emt 0:09:59]} Bxg2 {[%emt 0:01:39]} ({Don't play} 17... Bxf2+ 18. Rxf2 Ng4 19. Bd4 Nxf2 20. Bxf2 $16) 18. Kxg2 {[%emt 0:00:03]} d5 {[%emt 0:01:54]} 19. Nxc5 {[%emt 0:06:27]} Qxc5 {[%emt 0:00:05]} 20. Ne3 {[%emt 0:00:28]} dxc4 {[%emt 0:00:35]} 21. bxc4 {[%emt 0:04:37]} Qh5 {[%emt 0:03:08]} 22. h3 {[%emt 0:00:45]} Rad8 {[%emt 0:01:41]} 23. Qc2 {[%emt 0:04:10]} Ne4 {[%emt 0:00:43]} 24. Rcd1 {[%emt 0:05:55]} Nxc3 {[%emt 0:03:52]} 25. Qxc3 {[%emt 0:00:11]} Nf6 {[%emt 0:03:55]} (25... Qxe2 $2 26. Rd2 Rxe3 27. Qxe3 Qxe3 28. fxe3 $18) 26. Qb2 {[%emt 0:05:43]} b5 {[%emt 0:01:26] The position is equal.} 27. g4 {[%emt 0:03:14]} Qc5 {[%emt 0:00:29]} 28. cxb5 {[%emt 0:00:06] [#] Hoping for Rxd8.} Qxb5 {[%emt 0:01:52]} 29. Qxb5 {[%emt 0:01:36]} cxb5 {[%emt 0:00:04]} 30. Rxd8 {[%emt 0:04:56]} Rxd8 $11 {[%emt 0:00:02][%mdl 4096] Endgame KRN-KRN} 31. Rb1 {[%emt 0:00:05]} Rb8 {[%emt 0:01:03]} 32. Rb4 {[%emt 0:00:10]} Ne8 {[%emt 0:01:32]} 33. Nd5 {[%emt 0:00:37]} f6 {[%emt 0:00:37]} 34. e4 {[%emt 0:03:54]} Kf7 {[%emt 0:00:44]} 35. f4 {[%emt 0:01:05]} Ke6 {[%emt 0:00:28]} 36. Kf3 {[%emt 0:00:03]} Kd6 {[%emt 0:01:44]} 37. Rb1 {[%emt 0:04:06]} Nc7 {[%emt 0:01:57]} 38. Nb4 {[%emt 0:00:16][%cal Oe4e5]} Ra8 {[%emt 0:01:47]} 39. e5+ {[%emt 0:04:00]} fxe5 {[%emt 0:00:46] [#] White must now prevent ...Ra3+.} 40. Rd1+ {[%emt 0:00:00]} Ke7 {[%emt 0:00:00] Strongly threatening ...Ra3+.} 41. Nc6+ {[%emt 0:02:28]} Ke6 {[%emt 0:23:39]} 42. fxe5 {[%emt 0:02:57] Threatens to win with Rd6+.} Ra3+ {[%emt 0:06:15]} 43. Ke4 {[%emt 0:02:07] And now Rd6+ would win.} Ra4+ {[%emt 0:00:06]} 44. Nd4+ {[%emt 0:00:37]} Ke7 {[%emt 0:05:35] aiming for ...Ne6.} 45. Kd3 {[%emt 0:00:35]} Ne6 {[%emt 0:07:38]} 46. Nf5+ {[%emt 0:02:25]} Kf8 {[%emt 0:01:25]} 47. Rc1 {[%emt 0:00:33]} Nf4+ {[%emt 0:04:04]} 48. Kd2 {[%emt 0:02:15]} Rc4 {[%emt 0:01:17]} (48... Nxh3 $2 49. e6 Ra2+ 50. Ke1 $18) 49. Rf1 {[%emt 0:03:34]} g5 {[%emt 0:01:23]} 50. h4 {[%emt 0:02:08]} Ne6 {[%emt 0:02:32]} 51. hxg5 {[%emt 0:10:26][%cal Og5g6]} Rxg4 {[%emt 0:00:20]} 52. Nd6+ {[%emt 0:00:03]} Rf4 {[%emt 0:00:20]} 53. Rxf4+ {[%emt 0:00:29]} Nxf4 {[%emt 0:00:05]} 54. Nxb5 {[%emt 0:00:01] An even fight not without its subleties.  Weighted Error Value: White=0.03 (flawless) /Black=0.03 (flawless)} 1/2-1/2